[Event "GrandPrix_30.05"]
[Site "Chess.com"]
[Date "2020.05.30"]
[Round "8"]
[White "chessdjw"]
[Black "Lavrov_Maxim"]
[Result "1-0"]
[WhiteElo "2197"]
[BlackElo "2196"]
[TimeControl "600+2"]
[EndTime "11:57:25 PDT"]
[Termination "chessdjw won by resignation"]

1. e4 {[%clk 0:09:23.3]} 1... e5 {[%clk 0:09:58.5]} 2. Nf3 {[%clk 0:09:23.3]}
2... Nc6 {[%clk 0:09:59.5]} 3. Bb5 {[%clk 0:09:24.8]} 3... a6 {[%clk 0:10:00]}
4. Ba4 {[%clk 0:09:24.1]} 4... Nf6 {[%clk 0:10:00.9]} 5. d3 {[%clk 0:09:24.9]}
5... b5 {[%clk 0:10:00.5]} 6. Bb3 {[%clk 0:09:25.5]} 6... Be7 {[%clk 0:10:01.6]}
7. a4 {[%clk 0:09:23.7]} 7... Rb8 {[%clk 0:10:00.1]} 8. axb5 {[%clk 0:09:23.3]}
8... axb5 {[%clk 0:10:00.6]} 9. c3 {[%clk 0:09:24.6]} 9... O-O {[%clk
0:09:58.6]} 10. O-O {[%clk 0:09:23.6]} 10... d5 {[%clk 0:09:59.7]} 11. Nbd2
{[%clk 0:09:22.5]} 11... dxe4 {[%clk 0:09:58.9]} 12. dxe4 {[%clk 0:09:22]} 12...
Bc5 {[%clk 0:10:00]} 13. Qe2 {[%clk 0:09:19.6]} 13... Nh5 {[%clk 0:08:51.1]} 14.
g3 {[%clk 0:09:14]} 14... Bg4 {[%clk 0:08:43.3]} 15. Ra6 {[%clk 0:08:13.8]}
15... Bb6 {[%clk 0:08:35.7]} 16. Re1 {[%clk 0:07:53.4]} 16... Ne7 {[%clk
0:08:26.4]} 17. Nf1 {[%clk 0:07:22.4]} 17... Ng6 {[%clk 0:07:56.7]} 18. Be3
{[%clk 0:06:41.7]} 18... Qf6 {[%clk 0:07:45.4]} 19. N1d2 {[%clk 0:06:27.5]}
19... h6 {[%clk 0:05:55.9]} 20. Bxb6 {[%clk 0:06:08.7]} 20... Rxb6 {[%clk
0:05:54.9]} 21. Rxb6 {[%clk 0:06:09.1]} 21... Qxb6 {[%clk 0:05:54.4]} 22. h3
{[%clk 0:04:14.7]} 22... Nxg3 {[%clk 0:04:54.2]} 23. Qe3 {[%clk 0:04:12.7]}
23... Qxe3 {[%clk 0:04:45.3]} 24. Rxe3 {[%clk 0:04:12.9]} 24... Bxf3 {[%clk
0:04:43.3]} 25. fxg3 {[%clk 0:04:13.9]} 25... Bh5 {[%clk 0:03:55.6]} 26. g4
{[%clk 0:04:14.7]} 26... Nf4 {[%clk 0:03:43.3]} 27. gxh5 {[%clk 0:04:13.3]}
27... Nxh5 {[%clk 0:03:44.1]} 28. Nf3 {[%clk 0:04:08.1]} 28... Re8 {[%clk
0:03:44.5]} 29. Rd3 {[%clk 0:03:57.3]} 29... Nf6 {[%clk 0:03:44.8]} 30. Kg2
{[%clk 0:03:41.6]} 30... g6 {[%clk 0:03:23.6]} 31. Bc2 {[%clk 0:03:26.9]} 31...
Kg7 {[%clk 0:03:18.1]} 32. Rd1 {[%clk 0:03:27.2]} 32... g5 {[%clk 0:02:29.6]}
33. Ra1 {[%clk 0:03:25.6]} 33... Nh5 {[%clk 0:02:22.8]} 34. Ra5 {[%clk
0:03:15.1]} 34... Nf4+ {[%clk 0:02:22.3]} 35. Kg3 {[%clk 0:03:15.8]} 35... c6
{[%clk 0:02:20.8]} 36. Ra7 {[%clk 0:03:08.5]} 36... Kf6 {[%clk 0:02:14.8]} 37.
Rc7 {[%clk 0:02:34.3]} 37... h5 {[%clk 0:01:48.4]} 38. Rxc6+ {[%clk 0:02:29.1]}
38... Re6 {[%clk 0:01:49.5]} 39. Rxe6+ {[%clk 0:02:29.3]} 39... Nxe6 {[%clk
0:01:50.1]} 40. h4 {[%clk 0:02:25.4]} 40... g4 {[%clk 0:01:49.2]} 41. Ne1 {[%clk
0:02:17.2]} 41... Nf4 {[%clk 0:01:44.5]} 42. Ng2 {[%clk 0:02:16.1]} 42... Ne2+
{[%clk 0:01:39.7]} 43. Kf2 {[%clk 0:02:15.2]} 43... Nf4 {[%clk 0:01:40.5]} 44.
Ne3 {[%clk 0:01:50.8]} 44... Nh3+ {[%clk 0:01:35.9]} 45. Kg3 {[%clk 0:01:47.2]}
45... Ng1 {[%clk 0:01:29.9]} 46. Bd3 {[%clk 0:01:38.3]} 46... Nf3 {[%clk
0:01:19.9]} 47. Bxb5 {[%clk 0:01:37.6]} 47... Nd2 {[%clk 0:01:20.6]} 48. Bd3
{[%clk 0:01:37.8]} 1-0

[Event "GrandPrix_30.05"]
[Site "Chess.com"]
[Date "2020.05.30"]
[Round "8"]
[White "khekhm"]
[Black "LANCELOT96"]
[Result "1/2-1/2"]
[WhiteElo "2437"]
[BlackElo "2284"]
[TimeControl "600+2"]
[EndTime "11:57:26 PDT"]
[Termination "Game drawn - insufficient material"]

1. e4 {[%clk 0:10:01.9]} 1... c6 {[%clk 0:10:00.8]} 2. d4 {[%clk 0:09:52.8]}
2... d5 {[%clk 0:10:02.7]} 3. Nc3 {[%clk 0:09:54.3]} 3... dxe4 {[%clk
0:10:03.2]} 4. Nxe4 {[%clk 0:09:56.2]} 4... e5 {[%clk 0:10:04.5]} 5. dxe5 {[%clk
0:09:50.1]} 5... Qa5+ {[%clk 0:10:05.7]} 6. Bd2 {[%clk 0:09:29.9]} 6... Qxe5
{[%clk 0:10:06.7]} 7. Qe2 {[%clk 0:09:29.3]} 7... Bf5 {[%clk 0:10:07.4]} 8. f3
{[%clk 0:09:04.8]} 8... Bxe4 {[%clk 0:10:07.3]} 9. Qxe4 {[%clk 0:09:05.7]} 9...
Qxe4+ {[%clk 0:10:08.7]} 10. fxe4 {[%clk 0:09:07.6]} 10... Nd7 {[%clk
0:10:09.9]} 11. O-O-O {[%clk 0:09:04]} 11... O-O-O {[%clk 0:10:06.8]} 12. Nf3
{[%clk 0:08:58.6]} 12... Bd6 {[%clk 0:09:46.6]} 13. Ng5 {[%clk 0:08:32.5]} 13...
Nh6 {[%clk 0:09:43.4]} 14. Bc4 {[%clk 0:08:30.6]} 14... Ne5 {[%clk 0:09:40.8]}
15. Bb3 {[%clk 0:08:31.7]} 15... Be7 {[%clk 0:09:25.2]} 16. h4 {[%clk
0:07:51.8]} 16... Nhg4 {[%clk 0:09:16]} 17. Nxf7 {[%clk 0:07:50.9]} 17... Nxf7
{[%clk 0:09:14.7]} 18. Be6+ {[%clk 0:07:51.7]} 18... Kc7 {[%clk 0:09:11.6]} 19.
Bxg4 {[%clk 0:07:50.3]} 19... Ne5 {[%clk 0:09:13.1]} 20. Be2 {[%clk 0:07:49.5]}
20... Rd4 {[%clk 0:09:08.5]} 21. Bf3 {[%clk 0:07:34.4]} 21... Rhd8 {[%clk
0:09:03.9]} 22. Bc3 {[%clk 0:07:02.3]} 22... Rxd1+ {[%clk 0:09:04.7]} 23. Bxd1
{[%clk 0:07:02.5]} 23... Bf6 {[%clk 0:09:03]} 24. g4 {[%clk 0:06:52.5]} 24... h6
{[%clk 0:08:59.7]} 25. Rf1 {[%clk 0:06:17.3]} 25... Re8 {[%clk 0:08:51.2]} 26.
Rf5 {[%clk 0:06:09]} 26... Nd7 {[%clk 0:08:46.6]} 27. Bxf6 {[%clk 0:06:02]}
27... Nxf6 {[%clk 0:08:44.9]} 28. e5 {[%clk 0:05:15.5]} 28... Nd5 {[%clk
0:08:45.2]} 29. c4 {[%clk 0:04:08.8]} 29... Nb4 {[%clk 0:08:43.4]} 30. Rf7+
{[%clk 0:03:26.2]} 30... Kb6 {[%clk 0:08:44.2]} 31. Rxg7 {[%clk 0:03:24.1]}
31... Rxe5 {[%clk 0:08:40]} 32. Kd2 {[%clk 0:03:03.1]} 32... Re4 {[%clk
0:08:14.8]} 33. c5+ {[%clk 0:02:22.8]} 33... Kxc5 {[%clk 0:08:10.8]} 34. Rxb7
{[%clk 0:02:19.8]} 34... Rd4+ {[%clk 0:08:01.8]} 35. Ke1 {[%clk 0:01:53.8]}
35... Nd3+ {[%clk 0:07:53.6]} 36. Kf1 {[%clk 0:01:50.4]} 36... Nxb2 {[%clk
0:07:47.2]} 37. Be2 {[%clk 0:01:25.4]} 37... Nc4 {[%clk 0:07:40.5]} 38. Kf2
{[%clk 0:01:15.4]} 38... Ne5 {[%clk 0:07:31]} 39. Rg7 {[%clk 0:00:52.9]} 39...
a5 {[%clk 0:06:42.5]} 40. Ke3 {[%clk 0:00:48]} 40... Ra4 {[%clk 0:06:37]} 41. g5
{[%clk 0:00:23]} 41... Rxh4 {[%clk 0:06:35.8]} 42. g6 {[%clk 0:00:11.7]} 42...
Rh2 {[%clk 0:06:07.8]} 43. Rg8 {[%clk 0:00:12.5]} 43... Nc4+ {[%clk 0:06:06.7]}
44. Kf3 {[%clk 0:00:10.2]} 44... Ne5+ {[%clk 0:06:07.9]} 45. Ke3 {[%clk
0:00:11.4]} 45... Nc4+ {[%clk 0:04:47.6]} 46. Bxc4 {[%clk 0:00:12.2]} 46... Kxc4
{[%clk 0:04:48.2]} 47. Rc8 {[%clk 0:00:14.1]} 47... Rg2 {[%clk 0:04:37.9]} 48.
Rxc6+ {[%clk 0:00:14.8]} 48... Kb4 {[%clk 0:04:39.1]} 49. Kf3 {[%clk 0:00:12.8]}
49... Rg1 {[%clk 0:04:40]} 50. Kf4 {[%clk 0:00:09.6]} 50... Rg2 {[%clk
0:03:56.4]} 51. Kf5 {[%clk 0:00:08.8]} 51... Ka3 {[%clk 0:03:57.5]} 52. Ra6
{[%clk 0:00:06.3]} 52... a4 {[%clk 0:03:56.2]} 53. Kf6 {[%clk 0:00:07]} 53... h5
{[%clk 0:03:57.3]} 54. g7 {[%clk 0:00:06.2]} 54... h4 {[%clk 0:03:58.6]} 55. Kf7
{[%clk 0:00:06.7]} 55... Rxg7+ {[%clk 0:03:45.1]} 56. Kxg7 {[%clk 0:00:07.3]}
56... h3 {[%clk 0:03:46.8]} 57. Rh6 {[%clk 0:00:04]} 57... Kxa2 {[%clk
0:03:46.9]} 58. Rxh3 {[%clk 0:00:05.5]} 58... a3 {[%clk 0:03:48.5]} 59. Kf6
{[%clk 0:00:07.4]} 59... Kb2 {[%clk 0:03:49]} 60. Ke5 {[%clk 0:00:08.9]} 60...
a2 {[%clk 0:03:50.2]} 61. Rh2+ {[%clk 0:00:10.8]} 61... Kb1 {[%clk 0:03:51.2]}
62. Rh1+ {[%clk 0:00:12.3]} 62... Kb2 {[%clk 0:03:52.5]} 63. Rh2+ {[%clk
0:00:13.8]} 63... Kb1 {[%clk 0:03:54.2]} 64. Rxa2 {[%clk 0:00:14.8]} 64... Kxa2
{[%clk 0:03:55.4]} 1/2-1/2

[Event "GrandPrix_30.05"]
[Site "Chess.com"]
[Date "2020.05.30"]
[Round "8"]
[White "temus_galaktionov"]
[Black "ChessQueen"]
[Result "1-0"]
[WhiteElo "2591"]
[BlackElo "2395"]
[TimeControl "600+2"]
[EndTime "11:57:30 PDT"]
[Termination "temus_galaktionov won by resignation"]

1. d4 {[%clk 0:10:01.9]} 1... Nf6 {[%clk 0:10:00.1]} 2. Nf3 {[%clk 0:10:01.9]}
2... b6 {[%clk 0:09:55.3]} 3. g3 {[%clk 0:10:02.4]} 3... Bb7 {[%clk 0:09:55.7]}
4. Bg2 {[%clk 0:10:03.3]} 4... e6 {[%clk 0:09:57]} 5. c4 {[%clk 0:10:04.2]} 5...
Be7 {[%clk 0:09:56.2]} 6. Nc3 {[%clk 0:10:05.2]} 6... O-O {[%clk 0:09:51.9]} 7.
Qc2 {[%clk 0:10:05.5]} 7... c5 {[%clk 0:09:52.4]} 8. d5 {[%clk 0:10:06.4]} 8...
exd5 {[%clk 0:09:47.5]} 9. Nh4 {[%clk 0:10:07.1]} 9... Nc6 {[%clk 0:09:45.1]}
10. cxd5 {[%clk 0:10:07.6]} 10... Nd4 {[%clk 0:08:56.1]} 11. Qd1 {[%clk
0:10:08.6]} 11... Ne8 {[%clk 0:08:18.6]} 12. e3 {[%clk 0:09:40.8]} 12... Bxh4
{[%clk 0:08:06.8]} 13. exd4 {[%clk 0:09:39.6]} 13... Bf6 {[%clk 0:07:46.2]} 14.
Be3 {[%clk 0:09:37.7]} 14... cxd4 {[%clk 0:07:35.3]} 15. Bxd4 {[%clk 0:09:39.6]}
15... Bxd4 {[%clk 0:07:19.2]} 16. Qxd4 {[%clk 0:09:41.5]} 16... Qe7+ {[%clk
0:07:20.1]} 17. Kf1 {[%clk 0:08:03.6]} 17... Qf6 {[%clk 0:06:47.8]} 18. Rd1
{[%clk 0:07:56]} 18... Qxd4 {[%clk 0:06:40.8]} 19. Rxd4 {[%clk 0:07:57.9]} 19...
Nd6 {[%clk 0:06:41.3]} 20. Bf3 {[%clk 0:07:52.3]} 20... Rfe8 {[%clk 0:06:34.5]}
21. Kg2 {[%clk 0:07:50.3]} 21... f5 {[%clk 0:06:14.9]} 22. a4 {[%clk 0:07:31.1]}
22... Rac8 {[%clk 0:06:08.3]} 23. Ra1 {[%clk 0:07:22.9]} 23... a5 {[%clk
0:05:30.1]} 24. Ra3 {[%clk 0:07:07.6]} 24... Ba6 {[%clk 0:05:23.6]} 25. Rb3
{[%clk 0:06:56.7]} 25... Re1 {[%clk 0:05:03.7]} 26. h4 {[%clk 0:06:51.5]} 26...
Rb8 {[%clk 0:04:50.4]} 27. Rd1 {[%clk 0:06:29]} 27... Bf1+ {[%clk 0:04:44.6]}
28. Kh2 {[%clk 0:06:22.8]} 28... Rxd1 {[%clk 0:04:41]} 29. Nxd1 {[%clk
0:06:23.8]} 29... Nc4 {[%clk 0:03:58.9]} 30. Rc3 {[%clk 0:06:13.8]} 30... Nd2
{[%clk 0:03:37.8]} 31. Bg2 {[%clk 0:06:09]} 31... Bxg2 {[%clk 0:03:20.2]} 32.
Kxg2 {[%clk 0:06:10.9]} 32... Kf7 {[%clk 0:03:21.4]} 33. Ne3 {[%clk 0:06:06.6]}
33... g6 {[%clk 0:03:10]} 34. Rc2 {[%clk 0:05:41]} 34... Ne4 {[%clk 0:03:01.9]}
35. Nc4 {[%clk 0:05:41.7]} 35... Kf6 {[%clk 0:02:31.3]} 36. f3 {[%clk
0:05:34.4]} 36... Nc5 {[%clk 0:02:31.9]} 37. Nxb6 {[%clk 0:05:24.2]} 37... Rxb6
{[%clk 0:02:32.2]} 38. Rxc5 {[%clk 0:05:24.5]} 38... Rxb2+ {[%clk 0:02:33.7]}
39. Kh3 {[%clk 0:05:23.4]} 39... Ke5 {[%clk 0:01:54.4]} 40. Rxa5 {[%clk
0:05:18]} 40... Rd2 {[%clk 0:01:52.8]} 41. d6+ {[%clk 0:05:06.2]} 41... Kxd6
{[%clk 0:01:51.7]} 42. h5 {[%clk 0:05:05.4]} 42... Ke6 {[%clk 0:01:32.8]} 43.
Ra6+ {[%clk 0:04:59.8]} 43... d6 {[%clk 0:01:29.1]} 44. h6 {[%clk 0:04:51.8]}
44... Rd1 {[%clk 0:01:29.6]} 45. Ra7 {[%clk 0:04:24.2]} 45... Rh1+ {[%clk
0:01:05.8]} 46. Kg2 {[%clk 0:04:25]} 46... Rxh6 {[%clk 0:01:07.7]} 47. a5 {[%clk
0:04:15.3]} 47... g5 {[%clk 0:00:44.8]} 48. a6 {[%clk 0:04:13.3]} 48... Rf6
{[%clk 0:00:26.3]} 49. Rxh7 {[%clk 0:04:08.1]} 49... Rf8 {[%clk 0:00:25.7]} 50.
a7 {[%clk 0:04:02]} 50... Ra8 {[%clk 0:00:23.1]} 51. Kf2 {[%clk 0:03:59.6]}
51... Kd5 {[%clk 0:00:18.1]} 52. Ke3 {[%clk 0:03:48.7]} 52... Kc5 {[%clk
0:00:16.5]} 53. Kd3 {[%clk 0:03:42.1]} 53... d5 {[%clk 0:00:17.6]} 54. Rg7
{[%clk 0:03:39.2]} 54... g4 {[%clk 0:00:14.3]} 55. f4 {[%clk 0:03:37.4]} 55...
d4 {[%clk 0:00:12.9]} 56. Rf7 {[%clk 0:03:34.7]} 56... Kb6 {[%clk 0:00:08.2]}
57. Kxd4 {[%clk 0:03:35.3]} 57... Re8 {[%clk 0:00:07.2]} 58. Re7 {[%clk
0:03:27.8]} 1-0

[Event "GrandPrix_30.05"]
[Site "Chess.com"]
[Date "2020.05.30"]
[Round "8"]
[White "dzhumagaliev"]
[Black "Grandelicious"]
[Result "1-0"]
[WhiteElo "2334"]
[BlackElo "2471"]
[TimeControl "600+2"]
[EndTime "11:57:34 PDT"]
[Termination "dzhumagaliev won by resignation"]

1. Nf3 {[%clk 0:10:01.9]} 1... d5 {[%clk 0:10:00.4]} 2. h4 {[%clk 0:10:02.3]}
2... Nf6 {[%clk 0:09:50.8]} 3. h5 {[%clk 0:10:03.5]} 3... h6 {[%clk 0:09:52.1]}
4. d4 {[%clk 0:10:04.3]} 4... Bf5 {[%clk 0:09:32.6]} 5. c4 {[%clk 0:10:04.6]}
5... e6 {[%clk 0:09:33.6]} 6. Nc3 {[%clk 0:10:02.7]} 6... c6 {[%clk 0:09:17.2]}
7. Qb3 {[%clk 0:10:01.9]} 7... Qc8 {[%clk 0:09:05.2]} 8. Bf4 {[%clk 0:09:57.8]}
8... Be7 {[%clk 0:09:00.5]} 9. Rc1 {[%clk 0:09:54.9]} 9... O-O {[%clk
0:08:56.7]} 10. e3 {[%clk 0:09:53.3]} 10... Nbd7 {[%clk 0:08:54.9]} 11. Be2
{[%clk 0:09:53.1]} 11... Nb6 {[%clk 0:08:40.8]} 12. Ne5 {[%clk 0:09:47.5]} 12...
Nfd7 {[%clk 0:08:38.5]} 13. cxd5 {[%clk 0:08:18.4]} 13... exd5 {[%clk
0:08:12.6]} 14. a4 {[%clk 0:07:52.4]} 14... Nxe5 {[%clk 0:08:03.1]} 15. Bxe5
{[%clk 0:07:49.9]} 15... Qd7 {[%clk 0:07:54.3]} 16. a5 {[%clk 0:07:44.4]} 16...
Nc8 {[%clk 0:07:54]} 17. Na4 {[%clk 0:06:52]} 17... Nd6 {[%clk 0:06:37.4]} 18.
Nc5 {[%clk 0:06:45.8]} 18... Qc7 {[%clk 0:06:17.8]} 19. O-O {[%clk 0:06:38.5]}
19... b6 {[%clk 0:04:28.2]} 20. e4 {[%clk 0:05:03.5]} 20... dxe4 {[%clk
0:04:05.2]} 21. Na6 {[%clk 0:04:22.1]} 21... Qb7 {[%clk 0:03:32]} 22. Qg3 {[%clk
0:04:18.7]} 22... Ne8 {[%clk 0:03:27.8]} 23. Nc7 {[%clk 0:04:12.1]} 23... f6
{[%clk 0:02:58.7]} 24. Ba6 {[%clk 0:03:42.3]} 24... Qxa6 {[%clk 0:02:37.3]} 25.
Nxa6 {[%clk 0:03:41.8]} 25... fxe5 {[%clk 0:02:38.9]} 26. dxe5 {[%clk
0:03:17.7]} 26... c5 {[%clk 0:02:34.5]} 27. axb6 {[%clk 0:03:13.2]} 27... axb6
{[%clk 0:02:28.7]} 28. Qb3+ {[%clk 0:03:13.7]} 28... Kh8 {[%clk 0:02:23.9]} 29.
Qxb6 {[%clk 0:03:14.6]} 29... Bg5 {[%clk 0:02:24.7]} 30. Qxc5 {[%clk 0:02:32]}
30... Rg8 {[%clk 0:02:22.5]} 31. Ra1 {[%clk 0:02:20.4]} 31... Rc8 {[%clk
0:02:10.4]} 32. Qb6 {[%clk 0:02:12.8]} 32... Rc2 {[%clk 0:02:00.3]} 33. Rad1
{[%clk 0:01:59.3]} 33... e3 {[%clk 0:00:36.5]} 34. fxe3 {[%clk 0:01:47.4]} 34...
Re2 {[%clk 0:00:36.7]} 35. Rde1 {[%clk 0:01:28.7]} 35... Bxe3+ {[%clk
0:00:26.6]} 36. Qxe3 {[%clk 0:01:29.8]} 36... Rxe3 {[%clk 0:00:28]} 37. Rxe3
{[%clk 0:01:31.7]} 1-0

[Event "GrandPrix_30.05"]
[Site "Chess.com"]
[Date "2020.05.30"]
[Round "8"]
[White "lilleper1"]
[Black "SuperFineHipster"]
[Result "1-0"]
[WhiteElo "2364"]
[BlackElo "2202"]
[TimeControl "600+2"]
[EndTime "11:57:42 PDT"]
[Termination "lilleper1 won by resignation"]

1. d4 {[%clk 0:10:01.9]} 1... Nf6 {[%clk 0:09:51.2]} 2. c4 {[%clk 0:10:02.8]}
2... e6 {[%clk 0:09:48.1]} 3. Nf3 {[%clk 0:10:03.6]} 3... b6 {[%clk 0:09:47.5]}
4. g3 {[%clk 0:10:04.1]} 4... Bb4+ {[%clk 0:09:47.5]} 5. Bd2 {[%clk 0:10:02]}
5... Bxd2+ {[%clk 0:09:47.8]} 6. Qxd2 {[%clk 0:09:59.3]} 6... Bb7 {[%clk
0:09:49.7]} 7. Bg2 {[%clk 0:10:00]} 7... d6 {[%clk 0:09:49.7]} 8. O-O {[%clk
0:09:59.3]} 8... Nbd7 {[%clk 0:09:51.2]} 9. Nc3 {[%clk 0:09:55]} 9... O-O {[%clk
0:09:52.4]} 10. Qc2 {[%clk 0:09:48.3]} 10... Qe7 {[%clk 0:09:46.6]} 11. Rad1
{[%clk 0:09:44.6]} 11... Rfc8 {[%clk 0:08:22.3]} 12. e4 {[%clk 0:09:43.6]} 12...
e5 {[%clk 0:08:21.6]} 13. Rfe1 {[%clk 0:09:37.4]} 13... Nf8 {[%clk 0:08:17.1]}
14. Nd5 {[%clk 0:09:14.8]} 14... Nxd5 {[%clk 0:08:02.6]} 15. exd5 {[%clk
0:09:09.9]} 15... f6 {[%clk 0:08:01.3]} 16. dxe5 {[%clk 0:08:35.6]} 16... fxe5
{[%clk 0:07:51.7]} 17. Nd4 {[%clk 0:08:14.1]} 17... Re8 {[%clk 0:07:47.6]} 18.
Nc6 {[%clk 0:07:46.9]} 18... Bxc6 {[%clk 0:07:48.3]} 19. dxc6 {[%clk 0:07:48.1]}
19... Qf6 {[%clk 0:07:36.9]} 20. Bd5+ {[%clk 0:07:46]} 20... Kh8 {[%clk
0:07:37.5]} 21. Qe4 {[%clk 0:07:32.9]} 21... Ne6 {[%clk 0:07:33.9]} 22. Bxe6
{[%clk 0:07:28.5]} 22... Rxe6 {[%clk 0:07:35.8]} 23. f4 {[%clk 0:06:57.9]} 23...
Rae8 {[%clk 0:07:35.6]} 24. f5 {[%clk 0:06:57.9]} 24... R6e7 {[%clk 0:07:36.1]}
25. Rf1 {[%clk 0:06:56]} 25... Rf8 {[%clk 0:07:26.8]} 26. Rf2 {[%clk 0:06:38.5]}
26... Ref7 {[%clk 0:07:27.5]} 27. Rdf1 {[%clk 0:06:38.1]} 27... Qg5 {[%clk
0:07:25.5]} 28. Kg2 {[%clk 0:06:33.5]} 28... g6 {[%clk 0:07:22.3]} 29. h4 {[%clk
0:05:47.5]} 29... Qh5 {[%clk 0:07:00.5]} 30. f6 {[%clk 0:05:27.1]} 30... Qh6
{[%clk 0:06:33.8]} 31. Qg4 {[%clk 0:04:41.3]} 31... Qe3 {[%clk 0:06:21.8]} 32.
Rf3 {[%clk 0:03:58.7]} 32... Qc5 {[%clk 0:05:55.5]} 33. Qe4 {[%clk 0:03:57.2]}
33... b5 {[%clk 0:05:57]} 34. b3 {[%clk 0:03:51.4]} 34... bxc4 {[%clk
0:05:54.6]} 35. bxc4 {[%clk 0:03:51.7]} 35... Rb8 {[%clk 0:05:55]} 36. Rb3
{[%clk 0:03:42.5]} 36... Rb6 {[%clk 0:04:42.7]} 37. g4 {[%clk 0:03:36.2]} 37...
Rf8 {[%clk 0:04:28]} 38. Rxb6 {[%clk 0:03:12.6]} 38... axb6 {[%clk 0:04:27.8]}
39. g5 {[%clk 0:03:05.8]} 39... Kg8 {[%clk 0:04:16]} 40. h5 {[%clk 0:02:58.1]}
40... gxh5 {[%clk 0:03:08.5]} 41. g6 {[%clk 0:02:54.2]} 41... Qd4 {[%clk
0:02:09.9]} 42. Qxd4 {[%clk 0:02:31.4]} 42... exd4 {[%clk 0:02:11.8]} 43. g7
{[%clk 0:02:31.1]} 43... Rf7 {[%clk 0:02:05.8]} 44. Kg3 {[%clk 0:02:21.9]} 44...
d3 {[%clk 0:01:33.7]} 45. Kh4 {[%clk 0:02:21.2]} 45... d2 {[%clk 0:00:46.4]} 46.
Kg5 {[%clk 0:02:13.1]} 46... h4 {[%clk 0:00:47.8]} 47. Rd1 {[%clk 0:02:03.6]}
47... h3 {[%clk 0:00:34.3]} 48. Rxd2 {[%clk 0:01:59.3]} 1-0

[Event "GrandPrix_30.05"]
[Site "Chess.com"]
[Date "2020.05.30"]
[Round "8"]
[White "kostasam18"]
[Black "Vuk2000"]
[Result "1/2-1/2"]
[WhiteElo "2095"]
[BlackElo "2197"]
[TimeControl "600+2"]
[EndTime "11:57:53 PDT"]
[Termination "Game drawn by repetition"]

1. e4 {[%clk 0:09:05.1]} 1... d5 {[%clk 0:10:00.3]} 2. exd5 {[%clk 0:09:02.7]}
2... Qxd5 {[%clk 0:10:02.2]} 3. Nc3 {[%clk 0:09:02.2]} 3... Qd6 {[%clk
0:10:03.3]} 4. d4 {[%clk 0:09:01.8]} 4... Nf6 {[%clk 0:10:04.1]} 5. Nf3 {[%clk
0:09:03.6]} 5... c6 {[%clk 0:10:05.2]} 6. h3 {[%clk 0:07:29]} 6... g6 {[%clk
0:10:02.4]} 7. Bd3 {[%clk 0:07:21.2]} 7... Nbd7 {[%clk 0:10:00.4]} 8. O-O {[%clk
0:07:19]} 8... Bg7 {[%clk 0:10:00.9]} 9. Re1 {[%clk 0:07:18]} 9... O-O {[%clk
0:10:01.5]} 10. Be3 {[%clk 0:06:56.5]} 10... Nb6 {[%clk 0:10:01.8]} 11. Qd2
{[%clk 0:06:53]} 11... Re8 {[%clk 0:09:57.7]} 12. Ne5 {[%clk 0:06:51.2]} 12...
Nbd5 {[%clk 0:09:54.7]} 13. Nxd5 {[%clk 0:06:50.7]} 13... Nxd5 {[%clk
0:09:54.7]} 14. Bh6 {[%clk 0:06:44.1]} 14... Bh8 {[%clk 0:09:48.7]} 15. c4
{[%clk 0:06:30.7]} 15... Nc7 {[%clk 0:09:19.4]} 16. c5 {[%clk 0:05:53.5]} 16...
Qxd4 {[%clk 0:09:12.1]} 17. Re4 {[%clk 0:03:50.2]} 17... Qxe4 {[%clk 0:08:35.2]}
18. Bxe4 {[%clk 0:03:46.6]} 18... Bxe5 {[%clk 0:08:36.1]} 19. Bf4 {[%clk
0:03:40]} 19... Bxf4 {[%clk 0:08:30.4]} 20. Qxf4 {[%clk 0:03:41.9]} 20... Ne6
{[%clk 0:08:31.1]} 21. Qe5 {[%clk 0:03:40.6]} 21... Nf8 {[%clk 0:08:30]} 22. Rd1
{[%clk 0:03:38.2]} 22... Be6 {[%clk 0:08:25.8]} 23. Qc7 {[%clk 0:03:18.4]} 23...
Rab8 {[%clk 0:08:25.9]} 24. b3 {[%clk 0:03:16]} 24... f6 {[%clk 0:07:54.8]} 25.
f4 {[%clk 0:03:06.6]} 25... Kf7 {[%clk 0:07:50.7]} 26. g4 {[%clk 0:02:57.1]}
26... Rec8 {[%clk 0:07:36.8]} 27. Qa5 {[%clk 0:02:53.3]} 27... f5 {[%clk
0:06:51.1]} 28. Bf3 {[%clk 0:02:36.9]} 28... a6 {[%clk 0:06:29.9]} 29. g5 {[%clk
0:02:25.8]} 29... Nd7 {[%clk 0:06:18.9]} 30. h4 {[%clk 0:02:22.4]} 30... Nf8
{[%clk 0:05:38.3]} 31. h5 {[%clk 0:02:00.9]} 31... gxh5 {[%clk 0:05:36.2]} 32.
Bxh5+ {[%clk 0:02:00.4]} 32... Ng6 {[%clk 0:05:37]} 33. Kf2 {[%clk 0:01:54.2]}
33... Bd5 {[%clk 0:05:30.2]} 34. Kg3 {[%clk 0:01:49.7]} 34... Rd8 {[%clk
0:05:26.4]} 35. Qc3 {[%clk 0:01:28.6]} 35... Be4 {[%clk 0:05:14.8]} 36. Rd4
{[%clk 0:01:09.7]} 36... Rxd4 {[%clk 0:04:31.4]} 37. Qxd4 {[%clk 0:01:05.7]}
37... a5 {[%clk 0:04:31.7]} 38. a3 {[%clk 0:00:55.8]} 38... Bd5 {[%clk
0:03:41.9]} 39. Qe5 {[%clk 0:00:46]} 39... Rf8 {[%clk 0:03:41.3]} 40. b4 {[%clk
0:00:35.7]} 40... axb4 {[%clk 0:03:34.8]} 41. axb4 {[%clk 0:00:35.3]} 41... Be4
{[%clk 0:03:30.9]} 42. Qc7 {[%clk 0:00:25.9]} 42... Ra8 {[%clk 0:03:30.1]} 43.
Qxb7 {[%clk 0:00:22.3]} 43... Ra3+ {[%clk 0:03:27.6]} 44. Kf2 {[%clk 0:00:22.7]}
44... Ra2+ {[%clk 0:03:08.1]} 45. Ke3 {[%clk 0:00:21.9]} 45... Ra3+ {[%clk
0:03:07.3]} 46. Kd2 {[%clk 0:00:20.4]} 46... Rd3+ {[%clk 0:02:46.9]} 47. Kc1
{[%clk 0:00:18.7]} 47... Rb3 {[%clk 0:02:40.7]} 48. Kd2 {[%clk 0:00:15.7]} 48...
Rd3+ {[%clk 0:02:39.1]} 49. Kc1 {[%clk 0:00:14.2]} 49... Rb3 {[%clk 0:02:39.1]}
50. Kd2 {[%clk 0:00:14]} 50... Rd3+ {[%clk 0:02:34.2]} 1/2-1/2